fUSD/lending_fUSD_20250417
["ID","MTS","AMOUNT","RATE_DAILY","PERIOD"]
[358250934,1744876305228,-1727.55,0.00051506,120]
[358250935,1744876305238,-500.0,0.00051506,120]
[358250936,1744876305248,-500.0,0.00051506,120]
[358250937,1744876305258,-500.0,0.00051506,120]
[358250938,1744876305267,-1214.17,0.00051506,120]
[358250939,1744876305278,-500.0,0.00051506,120]
[358250940,1744876305288,-500.0,0.00051506,120]
[358250941,1744876305297,-563.29,0.00051506,120]
[358250942,1744876305307,-765.17,0.00051506,120]
[358250943,1744876305319,-781.9,0.00051506,120]
[358250944,1744876305330,-2735.7,0.00051506,120]
[358250945,1744876305342,-2102.94,0.00051506,120]
[358250946,1744876305352,-1420.11,0.00051506,120]
[358250947,1744876305361,-500.0,0.00051506,120]
[358250948,1744876305370,-541.28,0.00051506,120]
[358250949,1744876305379,-524.96,0.00051506,120]
[358250950,1744876305388,-500.0,0.00051506,120]
[358250951,1744876305398,-500.0,0.00051506,120]
[358250952,1744876305407,-776.69,0.00051506,120]
[358250953,1744876305416,-1055.54,0.00051506,120]
[358250954,1744876305425,-500.0,0.00051506,120]
[358250955,1744876305435,-1489.79,0.00051506,120]
[358250956,1744876305444,-1656.3,0.00051506,120]
[358250957,1744876305454,-1158.21,0.00051506,35]
[358250958,1744876305463,-500.0,0.00051506,120]
[358250959,1744876305473,-500.0,0.00051506,120]
[358250960,1744876305484,-500.0,0.00051506,120]
[358250961,1744876305494,-1223.23,0.00051506,120]
[358250962,1744876305503,-1296.94,0.00051506,120]
[358250963,1744876305513,-606.92,0.00051506,120]
[358250964,1744876305523,-500.0,0.00051506,120]
[358250965,1744876305533,-530.14457821,0.00051506,120]
[358250966,1744876305543,-1176.7,0.00051506,120]
[358250967,1744876305554,-1628.14,0.00051506,120]
[358250968,1744876305564,-1112.64,0.00051506,120]
[358250969,1744876305574,-2221.31,0.00051506,120]
[358250970,1744876305585,-500.0,0.00051506,120]
[358250971,1744876305594,-500.0,0.00051506,120]
[358250972,1744876305604,-500.0,0.00051506,120]
[358250973,1744876305613,-530.74,0.00051506,120]
[358250974,1744876305622,-862.16,0.00051506,120]
[358250975,1744876305632,-1379.41,0.00051506,120]
[358250976,1744876305641,-500.0,0.00051506,120]
[358250977,1744876305811,-507.47,0.00051506,120]
[358250978,1744876305821,-997.54,0.00051506,120]
[358250979,1744876305831,-500.0,0.00051506,120]
[358250980,1744876305840,-1247.38,0.00051506,120]
[358250981,1744876305849,-316.45407434,0.00051506,120]
[358250982,1744876305863,-500.0,0.00051506,120]
[358250983,1744876305872,-519.16,0.00051506,120]
[358250984,1744876305881,-730.71,0.00051506,120]
[358250985,1744876305891,-946.46,0.00051506,120]
[358250986,1744876305903,-500.0,0.00051506,120]
[358250987,1744876305912,-500.0,0.00051506,120]
[358250988,1744876305921,-500.0,0.00051506,120]
[358250989,1744876305929,-1007.48,0.00051506,120]
[358250990,1744876305937,-559.91,0.00051506,120]
[358250991,1744876305946,-500.0,0.00051506,120]
[358250992,1744876305955,-1373.68,0.00051506,120]
[358250993,1744876305964,-500.0,0.00051506,120]
[358250994,1744876305973,-940.05,0.00051506,120]
[358250995,1744876305982,-500.0,0.00051506,120]
[358250996,1744876305991,-500.0,0.00051506,120]
[358250997,1744876306002,-1203.26,0.00051506,120]
[358250998,1744876306012,-825.67,0.00051506,120]
[358250999,1744876306022,-1575.92,0.00051506,120]
[358251000,1744876306031,-500.0,0.00051506,120]
[358251001,1744876306042,-1004.58,0.00051506,120]
[358251002,1744876306052,-1167.01,0.00051506,120]
[358251003,1744876306061,-500.0,0.00051506,120]
[358251004,1744876306071,-701.01,0.00051506,120]
[358251005,1744876306080,-1323.83,0.00051506,120]
[358251006,1744876306090,-803.28,0.00051506,30]
[358251007,1744876306100,-507.89,0.00051506,120]
[358251008,1744876306110,-1748.54,0.00051506,120]
[358251009,1744876306122,-3514.34,0.00051506,120]
[358251010,1744876306131,-500.0,0.00051506,120]
[358251011,1744876306141,-500.0,0.00051506,120]
[358251012,1744876306150,-1749.19,0.00051506,120]
[358251013,1744876306160,-1134.15,0.00051506,120]
[358251014,1744876306169,-500.0,0.00051506,120]
[358251015,1744876306178,-1115.45,0.00051506,120]
[358251016,1744876306188,-1157.9,0.00051506,120]
[358251017,1744876306200,-1269.95,0.00051506,120]
[358251018,1744876306210,-1020.0,0.00051506,120]
[358251019,1744876306220,-500.0,0.00051506,120]
[358251020,1744876306229,-10000.0,0.00051506,120]
[358251021,1744876306239,-500.0,0.00051506,120]
[358251022,1744876306249,-1129.1,0.00051506,120]
[358251023,1744876306259,-568.86,0.00051506,120]
[358251024,1744876306269,-1581.24,0.00051506,120]
[358251025,1744876306278,-766.52,0.00051506,120]
[358251026,1744876306289,-500.0,0.00051506,120]
[358251027,1744876306299,-683.59,0.00051506,120]
[358251028,1744876306308,-500.0,0.00051506,120]
[358251029,1744876306318,-605.07,0.00051506,120]
[358251030,1744876306327,-1943.48,0.00051506,120]
[358251031,1744876306336,-500.0,0.00051506,120]
[358251032,1744876306346,-945.69,0.00051506,120]
[358251033,1744876306357,-155.73195481,0.00051506,120]
[358251034,1744876306367,-1873.76,0.00051506,120]
[358251035,1744876306376,-500.0,0.00051506,120]
[358251036,1744876306386,-500.0,0.00051506,120]
[358251037,1744876306395,-566.9,0.00051506,120]
[358251038,1744876306405,-500.0,0.00051506,120]
[358251039,1744876306415,-536.75,0.00051506,120]
[358251040,1744876306424,-500.0,0.00051506,120]
[358251041,1744876306434,-500.0,0.00051506,30]
[358251042,1744876306444,-1511.21,0.00051506,120]
[358251043,1744876306454,-2015.84,0.00051506,120]
[358251044,1744876306463,-500.0,0.00051506,120]
[358251045,1744876306473,-500.0,0.00051506,120]
[358251046,1744876306482,-576.1,0.00051506,120]
[358251047,1744876306493,-500.0,0.00051506,120]
[358251048,1744876306503,-503.02,0.00051506,120]
[358251049,1744876306513,-1485.3,0.00051506,120]
[358251050,1744876306522,-432.0,0.00051506,120]
[358251051,1744876306532,-616.82,0.00051506,120]
[358251052,1744876306542,-1889.42,0.00051506,120]
[358251053,1744876306552,-500.0,0.00051506,120]
[358251054,1744876306561,-521.54,0.00051506,120]
[358251055,1744876306571,-500.0,0.00051506,120]
[358251056,1744876306581,-500.0,0.00051506,120]
[358251057,1744876306591,-1626.25,0.00051506,120]
[358251058,1744876306601,-1000.0,0.00051506,120]
[358251059,1744876306610,-1339.26,0.00051506,120]
[358251060,1744876306620,-1497.28,0.00051506,120]
[358251061,1744876306631,-1832.25,0.00051506,120]
[358251062,1744876306641,-630.84,0.00051506,120]
[358251063,1744876306652,-500.0,0.00051506,120]
[358251064,1744876306664,-615.64,0.00051506,120]
[358251065,1744876306674,-500.0,0.00051506,120]
[358251066,1744876306683,-692.24,0.00051506,120]
[358251067,1744876306693,-500.0,0.00051506,120]
[358251068,1744876306702,-500.0,0.00051506,120]
[358251069,1744876306711,-1231.98,0.00051506,120]
[358251070,1744876306719,-1043.32,0.00051506,120]
[358251071,1744876306728,-467.07714719,0.00051506,120]
[358251072,1744876306737,-1684.61,0.00051506,120]
[358251073,1744876306747,-221.54299968,0.00051506,120]
[358251074,1744876306757,-500.0,0.00051506,120]
[358251075,1744876306766,-668.2,0.00051506,120]
[358251076,1744876306775,-500.0,0.00051506,120]
[358251077,1744876306785,-500.0,0.00051506,120]
[358251078,1744876306795,-500.0,0.00051506,120]
[358251079,1744876306804,-500.0,0.00051506,120]
[358251080,1744876306813,-500.0,0.00051506,120]
[358251081,1744876306823,-500.0,0.00051506,120]
[358251082,1744876306832,-500.0,0.00051506,120]
[358251083,1744876306842,-864.39,0.00051506,120]
[358251084,1744876306851,-626.02,0.00051506,120]
[358251085,1744876306860,-1072.56,0.00051506,120]
[358251086,1744876306870,-500.0,0.00051506,120]
[358251087,1744876306880,-1764.88,0.00051506,120]
[358251088,1744876306890,-500.0,0.00051506,120]
[358251089,1744876306900,-5640.62,0.00051506,120]
[358251090,1744876306909,-917.98,0.00051506,120]
[358251091,1744876306919,-1475.44,0.00051506,120]
[358251092,1744876306928,-500.0,0.00051506,120]
[358251093,1744876306937,-500.0,0.00051506,120]
[358251094,1744876306947,-1612.75,0.00051506,120]
[358251095,1744876306956,-500.0,0.00051506,120]
[358251096,1744876306966,-500.0,0.00051506,120]
[358251097,1744876306976,-2211.01,0.00051506,120]
[358251098,1744876306986,-791.97,0.00051506,14]
[358251099,1744876306996,-1177.02,0.00051506,120]
[358251100,1744876307006,-1468.16,0.00051506,120]
[358251101,1744876307015,-1829.33,0.00051506,120]
[358251102,1744876307025,-500.0,0.00051506,120]
[358251103,1744876307035,-500.0,0.00051506,120]
[358251104,1744876307044,-520.62,0.00051506,120]
[358251105,1744876307054,-500.0,0.00051506,120]
[358251106,1744876307064,-500.0,0.00051506,120]
[358251107,1744876307073,-793.46,0.00051506,120]
[358251108,1744876307084,-500.0,0.00051506,120]
[358251109,1744876307093,-500.0,0.00051506,120]
[358251110,1744876307103,-532.93678263,0.00051506,120]
[358251111,1744876307113,-500.0,0.00051506,120]
[358251112,1744876307125,-527.45,0.00051506,120]
[358251113,1744876307135,-1128.03,0.00051506,120]
[358251114,1744876307145,-500.0,0.00051506,120]
[358251115,1744876307155,-500.0,0.00051506,120]
[358251116,1744876307166,-500.0,0.00051506,120]
[358251117,1744876307175,-526.15025201,0.00051506,120]
[358251118,1744876307185,-10543.98,0.00051506,120]
[358251119,1744876307197,-10543.98,0.00051506,120]
[358251120,1744876307207,-674.54,0.00051506,120]
[358251121,1744876307218,-504.45,0.00051506,120]
[358251122,1744876307228,-500.0,0.00051506,120]
[358251123,1744876307238,-500.0,0.00051506,120]
[358251124,1744876307247,-586.57,0.00051506,120]
[358251125,1744876307256,-451.32979918,0.00051506,120]
[358251126,1744876307267,-500.0,0.00051506,120]
[358251127,1744876307277,-500.0,0.00051506,120]
[358251128,1744876307287,-500.0,0.00051506,120]
[358251129,1744876307297,-500.0,0.00051506,120]
[358251130,1744876307307,-1036.71,0.00051506,120]
[358251131,1744876307317,-500.0,0.00051506,120]
[358251132,1744876307326,-909.38,0.00051506,120]
[358251133,1744876307336,-500.0,0.00051506,120]
[358251134,1744876307345,-500.0,0.00051506,120]
[358251135,1744876307356,-500.0,0.00051506,120]
[358251136,1744876307365,-500.0,0.00051506,120]
[358251137,1744876307375,-1171.86,0.00051506,120]
[358251138,1744876307385,-2181.26,0.00051506,120]
[358251139,1744876307395,-500.0,0.00051506,120]
[358251140,1744876307406,-500.0,0.00051506,120]
[358251141,1744876307416,-675.13,0.00051506,120]
[358251142,1744876307425,-492.39733696,0.00051506,120]
[358251143,1744876307435,-500.0,0.00051506,120]
[358251144,1744876307444,-500.0,0.00051506,120]
[358251145,1744876307454,-500.0,0.00051506,120]
[358251146,1744876307463,-500.0,0.00051506,120]
[358251147,1744876307472,-500.0,0.00051506,120]
[358251148,1744876307482,-1081.53,0.00051506,120]
[358251149,1744876307492,-1595.7,0.00051506,120]
[358251150,1744876307502,-500.0,0.00051506,120]
[358251151,1744876307511,-1097.37,0.00051506,120]
[358251152,1744876307521,-500.0,0.00051506,120]
[358251153,1744876307530,-1093.79,0.00051506,120]
[358251154,1744876307539,-500.0,0.00051506,120]
[358251155,1744876307549,-722.02,0.00051506,120]
[358251156,1744876307559,-978.59,0.00051506,120]
[358251157,1744876307568,-500.0,0.00051506,120]
[358251158,1744876307578,-1836.63,0.00051506,120]
[358251159,1744876307587,-500.0,0.00051506,120]
[358251160,1744876307596,-614.33,0.00051506,120]
[358251161,1744876307606,-1012.01,0.00051506,120]
[358251162,1744876307616,-2529.41,0.00051506,120]
[358251163,1744876307625,-1942.54,0.00051506,120]
[358251164,1744876307635,-500.0,0.00051506,120]
[358251165,1744876307644,-2464.72,0.00051506,120]
[358251166,1744876307653,-1110.2,0.00051506,120]
[358251167,1744876307662,-771.84,0.00051506,120]
[358251168,1744876307672,-604.43282632,0.00051506,120]
[358251169,1744876307681,-1931.2,0.00051506,120]
[358251170,1744876307691,-500.0,0.00051506,120]
[358251171,1744876307700,-500.0,0.00051506,120]
[358251172,1744876307709,-676.22,0.00051506,120]
[358251173,1744876307718,-601.64,0.00051506,120]
[358251174,1744876307728,-500.0,0.00051506,120]
[358251175,1744876307737,-2027.54,0.00051506,120]
[358251176,1744876307747,-1731.61,0.00051506,120]
[358251177,1744876307756,-500.0,0.00051506,120]
[358251178,1744876307766,-506.42,0.00051506,120]
[358251179,1744876307775,-560.74,0.00051506,120]
[358251180,1744876307784,-500.0,0.00051506,120]
[358251181,1744876307794,-1571.6,0.00051506,120]
[358251182,1744876307803,-575.17,0.00051506,120]
[358251183,1744876307812,-500.0,0.00051506,120]
[358251184,1744876307821,-500.0,0.00051506,120]
[358251185,1744876307830,-1491.97,0.00051506,120]
[358251186,1744876307839,-500.0,0.00051506,120]
[358251187,1744876307848,-1061.2,0.00051506,120]
[358251188,1744876307858,-500.0,0.00051506,120]
[358251189,1744876307867,-1783.03,0.00051506,120]
[358251190,1744876307876,-500.0,0.00051506,120]
[358251191,1744876307886,-559.87,0.00051506,120]
[358251192,1744876307895,-500.0,0.00051506,120]
[358251193,1744876307904,-500.0,0.00051506,120]
[358251194,1744876307914,-500.0,0.00051506,120]
[358251195,1744876307923,-500.0,0.00051506,120]
[358251196,1744876307932,-1489.6,0.00051506,120]
[358251197,1744876307942,-3035.42,0.00051506,120]
[358251198,1744876307951,-2015.28,0.00051506,120]
[358251199,1744876307961,-1985.57,0.00051506,120]
[358251200,1744876307971,-835.38,0.00051506,120]
[358251201,1744876307980,-843.17,0.00051506,120]
[358251202,1744876307990,-728.48,0.00051506,120]
[358251203,1744876307999,-2125.57,0.00051506,120]
[358251204,1744876308009,-506.65,0.00051506,120]
[358251205,1744876308018,-517.91,0.00051506,120]
[358251206,1744876308027,-531.0,0.00051506,120]
[358251207,1744876308036,-1110.06,0.00051506,120]
[358251208,1744876308046,-500.0,0.00051506,120]
[358251209,1744876308056,-3548.1,0.00051506,120]
[358251210,1744876308066,-887.03,0.00051506,120]
[358251211,1744876308075,-500.0,0.00051506,120]
[358251212,1744876308084,-1073.22,0.00051506,120]
[358251213,1744876308095,-500.0,0.00051506,120]
[358251214,1744876308104,-500.0,0.00051506,120]
[358251215,1744876308115,-500.0,0.00051506,120]
[358251216,1744876308127,-500.0,0.00051506,120]
[358251217,1744876308137,-500.0,0.00051506,120]
[358251218,1744876308146,-576.70744391,0.00051506,120]
[358251219,1744876308156,-500.0,0.00051506,120]
[358251220,1744876308166,-500.0,0.00051506,120]
[358251221,1744876308175,-1152.77,0.00051506,120]
[358251222,1744876308185,-500.0,0.00051506,120]
[358251223,1744876308194,-2168.54,0.00051506,120]
[358251224,1744876308205,-568.46,0.00051506,120]
[358251225,1744876308215,-500.0,0.00051506,120]
[358251226,1744876308224,-500.0,0.00051506,120]
[358251227,1744876308233,-500.0,0.00051506,120]
[358251228,1744876308243,-888.6,0.00051506,120]
[358251229,1744876308252,-500.0,0.00051506,120]
[358251230,1744876308263,-1780.21,0.00051506,120]
[358251231,1744876308272,-544.55,0.00051506,120]
[358251232,1744876308283,-979.12,0.00051506,120]
[358251233,1744876308293,-2832.46,0.00051506,120]
[358251234,1744876308467,-1076.61,0.00051506,120]
[358251235,1744876308477,-518.93,0.00051506,120]
[358251236,1744876308487,-500.0,0.00051506,120]
[358251237,1744876308519,-889.68,0.00051506,120]
[358251238,1744876308529,-500.0,0.00051506,120]
[358251239,1744876308539,-3566.71,0.00051506,120]
[358251240,1744876308548,-1124.76,0.00051506,120]
[358251241,1744876308558,-1217.56,0.00051506,120]
[358251242,1744876308567,-1639.19,0.00051506,120]
[358251243,1744876308577,-1092.56,0.00051506,120]
[358251244,1744876308587,-500.0,0.00051506,120]
[358251245,1744876308596,-972.81,0.00051506,118]
[358251246,1744876308606,-1788.27,0.00051506,120]
[358251247,1744876308616,-861.37,0.00051506,120]
[358251248,1744876308625,-822.54,0.00051506,120]
[358251249,1744876308634,-500.0,0.00051506,120]
[358251250,1744876308643,-500.0,0.00051506,120]
[358251251,1744876308653,-702.66,0.00051506,120]
[358251252,1744876308662,-1270.01,0.00051506,120]
[358251253,1744876308672,-282.50420686,0.00051506,120]
[358251254,1744876308682,-500.0,0.00051506,120]
[358251255,1744876308691,-909.8,0.00051506,120]
[358251256,1744876308700,-593.0,0.00051506,120]
[358251257,1744876308709,-753.51,0.00051506,120]
[358251258,1744876308719,-516.56,0.00051506,120]
[358251259,1744876308728,-973.47,0.00051506,120]
[358251260,1744876308738,-500.0,0.00051506,120]
[358251261,1744876308748,-2790.52,0.00051506,120]
[358251262,1744876308758,-500.0,0.00051506,120]
[358251263,1744876308768,-500.0,0.00051506,120]
[358251264,1744876308777,-554.36,0.00051506,120]
[358251265,1744876308787,-555.93,0.00051506,120]
[358251266,1744876308797,-1344.71,0.00051506,120]
[358251267,1744876308806,-1633.9,0.00051506,120]
[358251268,1744876308824,-1508.99,0.00051506,120]
[358251269,1744876308836,-500.0,0.00051506,120]
[358251270,1744876308846,-500.0,0.00051506,120]
[358251271,1744876308856,-801.2,0.00051506,120]
[358251272,1744876308866,-2484.07,0.00051506,120]
[358251273,1744876308876,-500.0,0.00051506,120]
[358251274,1744876308886,-3739.63,0.00051506,120]
[358251275,1744876308896,-500.0,0.00051506,120]
[358251276,1744876308906,-605.98,0.00051506,120]
[358251277,1744876308915,-500.0,0.00051506,120]
[358251278,1744876308925,-3141.6,0.00051506,120]
[358251279,1744876308935,-1042.98,0.00051506,120]
[358251280,1744876308945,-536.48,0.00051506,120]
[358251281,1744876308955,-1821.22,0.00051506,120]
[358251282,1744876308966,-500.0,0.00051506,120]
[358251283,1744876308976,-1155.97,0.00051506,120]
[358251284,1744876308986,-500.0,0.00051506,120]
[358251285,1744876308996,-608.82,0.00051506,120]
[358251286,1744876309007,-1542.01,0.00051506,120]
[358251287,1744876309017,-500.0,0.00051506,120]
[358251288,1744876309027,-608.54,0.00051506,120]
[358251289,1744876309037,-500.0,0.00051506,120]
[358251290,1744876309047,-1023.29,0.00051506,120]
[358251291,1744876309057,-505.15,0.00051506,120]
[358251292,1744876309067,-512.28,0.00051506,120]
[358251293,1744876309077,-996.12,0.00051506,120]
[358251294,1744876309086,-500.0,0.00051506,120]
[358251295,1744876309096,-821.03,0.00051506,120]
[358251296,1744876309106,-500.0,0.00051506,120]
[358251297,1744876309116,-533.51,0.00051506,120]
[358251298,1744876309131,-1488.96,0.00051506,120]
[358251299,1744876309143,-2888.97,0.00051506,120]
[358251300,1744876309152,-500.0,0.00051506,120]
[358251301,1744876309163,-605.83,0.00051506,120]
[358251302,1744876309176,-570.18,0.00051506,120]
[358251303,1744876309187,-722.72,0.00051506,120]
[358251304,1744876309198,-754.15,0.00051506,120]
[358251305,1744876309209,-1214.83,0.00051506,120]
[358251306,1744876309219,-2415.97382549,0.00051506,10]
[358251307,1744876309229,-500.0,0.00051506,120]
[358251308,1744876309239,-500.0,0.00051506,2]
[358251309,1744876309248,-1002.18,0.00051506,8]
[358251310,1744876309258,-500.0,0.00051506,120]
[358251311,1744876309269,-1218.38,0.00051506,120]
[358251312,1744876309278,-1097.9,0.00051506,120]
[358251313,1744876309288,-500.0,0.00051506,120]
[358251314,1744876309298,-1622.19,0.00051506,120]
[358251315,1744876309308,-7361.74,0.00051506,120]
[358251316,1744876309319,-779.5,0.00051506,120]
[358251317,1744876309330,-2365.86,0.00051506,120]
[358251318,1744876309341,-658.32958279,0.00051507,120]
[358251319,1744876309351,-150.0,0.00051507,14]
[358251320,1744876309362,-150.0,0.00051507,14]
[358251321,1744876309373,-200.0,0.00051507,14]
[358251322,1744876309383,-500.0,0.00051507,14]
[358251323,1744876309394,-500.0,0.00051507,14]
[358251324,1744876309404,-500.0,0.00051507,14]
[358251325,1744876309413,-500.0,0.00051507,14]
[358251326,1744876309424,-500.0,0.00051507,14]
[358251327,1744876309434,-500.0,0.00051507,14]
[358251328,1744876309443,-500.0,0.00051507,14]
[358251329,1744876309453,-500.0,0.00051507,14]
[358251330,1744876309462,-500.0,0.00051507,14]
[358251331,1744876309471,-500.0,0.00051507,14]
[358251332,1744876309481,-500.0,0.00051507,14]
[358251333,1744876309491,-500.0,0.00051507,14]
[358251334,1744876309500,-500.0,0.00051507,14]
[358251335,1744876309510,-500.0,0.00051507,14]
[358251336,1744876309519,-500.0,0.00051507,14]
[358251337,1744876309528,-258.95961187,0.00051507,14]
[358251338,1744876309538,-250.36306374,0.00051507,14]
[358251339,1744876309547,-719.0,0.00051507,14]
[358251340,1744876309557,-719.0,0.00051507,14]
[358251341,1744876309567,-719.0,0.00051507,14]
[358251342,1744876309576,-719.0,0.00051507,14]
[358251343,1744876309586,-719.0,0.00051507,14]
[358251344,1744876309596,-719.0,0.00051507,14]
[358251345,1744876309605,-719.0,0.00051507,14]
[358251346,1744876309614,-719.0,0.00051507,14]
[358251347,1744876309624,-719.0,0.00051507,14]
[358251348,1744876309633,-719.0,0.00051507,14]
[358251349,1744876309643,-719.0,0.00051507,14]
[358251350,1744876309653,-719.0,0.00051507,14]
[358251351,1744876309663,-719.0,0.00051507,14]
[358251352,1744876309672,-719.0,0.00051507,14]
[358251353,1744876309682,-719.0,0.00051507,14]
[358251354,1744876309691,-719.0,0.00051507,14]
[358251355,1744876309715,-719.0,0.00051507,14]
[358251356,1744876309738,-719.0,0.00051507,14]
[358251357,1744876309760,-719.0,0.00051507,14]
[358251358,1744876309782,-719.0,0.00051507,14]
[358251359,1744876309800,-719.0,0.00051507,14]
[358251360,1744876309821,-719.0,0.00051507,14]
[358251361,1744876309841,-719.0,0.00051507,14]
[358251362,1744876309863,-726.26289924,0.00051507,14]
[358251363,1744876309882,-500.0,0.00051507,14]
[358251364,1744876309902,-500.47874222,0.00051507,14]
[358251365,1744876309923,-500.0,0.00051507,14]
[358251366,1744876309940,-500.0,0.00051507,14]
[358251367,1744876309959,-594.25237559,0.00051507,14]
[358251368,1744876309972,-150.0,0.00051507,14]
[358251369,1744876309990,-150.0,0.00051507,14]
[358251370,1744876310007,-150.0,0.00051507,14]
[358251371,1744876310024,-150.0,0.00051507,14]
[358251372,1744876310041,-250.0,0.00051507,14]
[358251373,1744876310059,-150.0,0.00051507,14]
[358251374,1744876310075,-150.0,0.00051507,14]
[358251375,1744876310091,-150.0,0.00051507,14]
[358251376,1744876310106,-271.18246638,0.00051507,14]
[358251377,1744876310125,-150.0,0.00051507,14]
[358251378,1744876310141,-10000.0,0.00051534,120]
[358251379,1744876310156,-860.46,0.00051555,2]
[358251380,1744876310173,-10000.0,0.00051561,120]
[358251381,1744876310188,-150.0,0.00051568,30]
[358251382,1744876310204,-10000.0,0.00051589,120]
[358251383,1744876310220,-2110.0,0.00051602,30]
[358251384,1744876310236,-1356.99314263,0.00051616,120]
[358251385,1744876310252,-457.56,0.000517,120]
[358251386,1744876310268,-158.811424,0.0005178,120]
[358251387,1744876310284,-591.156374,0.0005178,120]
[358251388,1744876310298,-227.981738,0.0005178,120]
[358251389,1744876310315,-500.0,0.0005178,120]
[358251390,1744876310330,-1611.74,0.0005178,120]
[358251391,1744876310347,-772.09,0.0005178,120]
[358251392,1744876310364,-3077.05,0.0005178,120]
[358251393,1744876310379,-500.0,0.0005178,120]
[358251394,1744876310394,-500.0,0.0005178,120]
[358251395,1744876310408,-516.0,0.0005178,120]
[358251396,1744876310423,-825.74,0.0005178,120]
[358251397,1744876310438,-500.0,0.0005178,120]
[358251398,1744876310454,-500.0,0.0005178,120]
[358251399,1744876310469,-1329.86,0.0005178,120]
[358251400,1744876310484,-1041.46,0.0005178,120]
[358251401,1744876310499,-500.0,0.0005178,120]
[358251402,1744876310514,-500.0,0.0005178,120]
[358251403,1744876310530,-995.71,0.0005178,120]
[358251404,1744876310546,-500.0,0.0005178,120]
[358251405,1744876310561,-500.0,0.0005178,120]
[358251406,1744876310577,-561.46,0.0005178,30]
[358251407,1744876310591,-889.17,0.0005178,120]
[358251408,1744876310606,-1598.19,0.0005178,120]
[358251409,1744876310621,-500.0,0.0005178,120]
[358251410,1744876310635,-2447.13,0.0005178,120]
[358251411,1744876310651,-934.81,0.0005178,120]
[358251412,1744876310666,-500.0,0.0005178,120]
[358251413,1744876310681,-558.88,0.0005178,120]
[358251414,1744876310696,-500.0,0.0005178,120]
[358251415,1744876310711,-500.0,0.0005178,120]
[358251416,1744876310726,-500.0,0.0005178,120]
[358251417,1744876310741,-500.0,0.0005178,120]
[358251418,1744876310756,-120995.21,0.0005178,7]
[358251419,1744876310771,-500.0,0.0005178,120]
[358251420,1744876310786,-1597.3,0.0005178,120]
[358251421,1744876310801,-724.18,0.0005178,2]
[358251422,1744876310817,-500.0,0.0005178,120]
[358251423,1744876310832,-500.0,0.0005178,120]
[358251424,1744876310847,-1073.23,0.0005178,120]
[358251425,1744876310862,-852.63,0.0005178,120]
[358251426,1744876310882,-500.0,0.0005178,120]
[358251427,1744876310897,-9618.82,0.0005178,2]
[358251428,1744876310912,-500.0,0.0005178,120]
[358251429,1744876310927,-500.0,0.0005178,120]
[358251430,1744876310942,-500.0,0.0005178,120]
[358251431,1744876310956,-748.68,0.0005178,120]
[358251432,1744876310971,-507.6,0.0005178,120]
[358251433,1744876310986,-4167.06,0.0005178,120]